{"text_format":"3","workbook":"xlsx","n_sheets":4,"sheets":["Year 1 ","Year 2","Year 3","TOTAL BIDDING AMOUNT"],"not_rendered":{"images":1,"defined_names":3},"read":"whole","date_system":"1900"}

{"sheet":"Year 1 ","index":0,"n_rows":38,"n_cols":7,"rows_kept":38,"merged":[[1,1,1,6],[3,1,3,6],[5,0,5,3],[5,4,5,6],[6,0,6,3],[7,0,7,2],[8,0,8,3],[9,0,9,3],[11,0,11,3],[12,0,12,3],[15,0,15,3],[16,0,16,3],[17,0,17,3],[17,4,17,6],[18,0,18,3],[19,0,19,3],[20,0,20,3],[21,0,21,3],[23,0,23,2],[28,2,28,6],[29,0,29,6],[30,0,30,6],[31,0,31,6],[32,0,32,6],[33,0,33,6],[34,1,34,3],[37,0,38,0]]}
[null,"APPENDIX A - PRICING SHEET "]
[null,"APPOINTMENT OF SERVICE PROVIDERS TO RECRUIT CANDIDATES FOR BANKSETA LEARNING PROGRAMMES"]
[null,"Bid No: BS/2023/RFB487"]
[null,"YEAR 1"]
[]
[{"$nulls":4}," 500 Learners (Celing)"]
["Specification / Description A",{"$nulls":3},"Numbers of learners ","Price per Learner","Unit Price ( Ex Vat)"]
["Recruitment project management ",{"$nulls":3},500,0,{"$f":"E8*F8","v":0}]
["Advertising and recruitment Implementation ",{"$nulls":3},500,0,{"$f":"E9*F9","v":0}]
["Interview related costs (Venue and travel)",{"$nulls":3},500,0,0]
["Medical and clinical assessment for disabled candidates",{"$nulls":3},500,0,0]
["Screening (including psychometric testing), shortlisting and selection of candidates",{"$nulls":3},500,0,0]
["Submission of final recommendation of recruitment candidates pack",{"$nulls":3},{"$f":"+E12","v":500},0,0]
["DataCapuring ",{"$nulls":3},{"$f":"+E13","v":500},0,0]
["Reporting ",{"$nulls":3},{"$f":"+E14","v":500},0,0]
["SUB TOTAL",{"$nulls":3},500,{"$f":"+G16/E16","v":0},{"$f":"SUM(G8:G15)","v":0}]
["Other Items not included in above - BIDDER TO SPECIFY"]
[{"$nulls":4},{"$f":"+E6","v":" 500 Learners (Celing)"}]
[{"$nulls":4},"Numbers of learners Learners","Price per Learner","Unit Price ( Ex Vat)"]
[1,{"$nulls":3},500,0,{"$f":"E20*F20","v":0}]
[2,{"$nulls":3},500,0,{"$f":"E21*F21","v":0}]
[3,{"$nulls":3},500,0,0]
[4,{"$nulls":3},500,0,0]
["OPTIONAL ADDITION",{"$nulls":3},{"$f":"+E23","v":500},{"$f":"+G24/E24","v":0},{"$f":"SUM(G20:G23)","v":{"v":0,"d":"R 0.00"}}]
[]
["Total excluding VAT",{"$nulls":3},500,{"$f":"+G26/E26","v":0},{"$f":"+G24+G16","v":0}]
["VAT if Applicable (If VAT registered)",{"$nulls":5},{"$f":"+G26*0.15","v":{"v":0,"d":"R0.00"}}]
["TOTAL BIDDING PRICE INCL VAT",{"$nulls":3},500,{"$f":"+G28/E28","v":0},{"$f":"+G27+G26","v":0}]
["Notes:"]
["Pricing must cover all items detailed in the Terms of Reference"]
["Pricing must remain firm for the particurlar year shown"]
["Pricing must include Value Added Tax (VAT)"]
["Service provider should complete blocks in yellow. Total values in this spreadsheet are automatically calculated and filled in."]
[]
["Date:"]
["Service Provider Name"]
["Name of Person Signing"]
["Signature"]

{"sheet":"Year 2","index":1,"n_rows":38,"n_cols":7,"rows_kept":38,"merged":[[1,1,1,6],[3,1,3,6],[5,0,5,3],[5,4,5,6],[6,0,6,3],[7,0,7,2],[8,0,8,3],[9,0,9,3],[11,0,11,3],[12,0,12,3],[15,0,15,3],[16,0,16,3],[17,0,17,3],[17,4,17,6],[18,0,18,3],[19,0,19,3],[20,0,20,3],[21,0,21,3],[23,0,23,2],[28,2,28,6],[29,0,29,6],[30,0,30,6],[31,0,31,6],[32,0,32,6],[33,0,33,6],[34,1,34,3],[37,0,38,0]]}
[null,"APPENDIX A - PRICING SHEET "]
[null,"APPOINTMENT OF SERVICE PROVIDERS TO RECRUIT CANDIDATES FOR BANKSETA LEARNING PROGRAMMES"]
[null,"Bid No: BS/2023/RFB487"]
[null,"YEAR 2"]
[]
[{"$nulls":4},{"$f":"+E18","v":"600 Learners (Ceiling)"}]
["Specification / Description A",{"$nulls":3},"Numbers of learners ","Price per Learner","Unit Price ( Ex Vat)"]
["Recruitment project management ",{"$nulls":3},600,0,{"$f":"E8*F8","v":0}]
["Advertising and recruitment Implementation ",{"$nulls":3},600,0,{"$f":"E9*F9","v":0}]
["Interview related costs (Venue and travel)",{"$nulls":3},600,0,0]
["Medical and clinical assessment for disabled candidates",{"$nulls":3},600,0,0]
["Screening (including psychometric testing), shortlisting and selection of candidates",{"$nulls":3},600,0,0]
["Submission of final recommendation of recruitment candidates pack",{"$nulls":3},600,0,0]
["DataCapuring ",{"$nulls":3},600,0,0]
["Reporting ",{"$nulls":3},600,0,0]
["SUB TOTAL",{"$nulls":3},600,{"$f":"+G16/E16","v":0},{"$f":"SUM(G8:G15)","v":0}]
["Other Items not included in above - BIDDER TO SPECIFY"]
[{"$nulls":4},"600 Learners (Ceiling)"]
[{"$nulls":4},"Numbers of learners  Learners","Price per Learner","Unit Price ( Ex Vat)"]
[1,{"$nulls":3},600,0,{"$f":"E20*F20","v":0}]
[2,{"$nulls":3},600,0,{"$f":"E21*F21","v":0}]
[3,{"$nulls":3},600,0,0]
[4,{"$nulls":3},600,0,0]
["OPTIONAL ADDITION",{"$nulls":3},{"$f":"+E23","v":600},{"$f":"+G24/E24","v":0},{"$f":"SUM(G20:G23)","v":{"v":0,"d":"R 0.00"}}]
[]
["Total excluding VAT",{"$nulls":3},600,{"$f":"+G26/E26","v":0},{"$f":"+G24+G16","v":0}]
["VAT if Applicable (If VAT registered)",{"$nulls":5},{"$f":"+G26*0.15","v":{"v":0,"d":"R0.00"}}]
["TOTAL BIDDING PRICE INCL VAT",{"$nulls":3},600,{"$f":"+G28/E28","v":0},{"$f":"+G27+G26","v":0}]
["Notes:"]
["Pricing must cover all items detailed in the Terms of Reference"]
["Pricing must remain firm for the particurlar year shown"]
["Pricing must include Value Added Tax (VAT)"]
["Service provider should complete blocks in yellow. Total values in this spreadsheet are automatically calculated and filled in."]
[]
["Date:"]
["Service Provider Name"]
["Name of Person Signing"]
["Signature"]

{"sheet":"Year 3","index":2,"n_rows":38,"n_cols":7,"rows_kept":38,"merged":[[1,1,1,6],[3,1,3,6],[5,0,5,3],[5,4,5,6],[6,0,6,3],[7,0,7,2],[8,0,8,3],[9,0,9,3],[11,0,11,3],[12,0,12,3],[15,0,15,3],[16,0,16,3],[17,0,17,3],[17,4,17,6],[18,0,18,3],[19,0,19,3],[20,0,20,3],[21,0,21,3],[23,0,23,2],[28,2,28,6],[29,0,29,6],[30,0,30,6],[31,0,31,6],[32,0,32,6],[33,0,33,6],[34,1,34,3],[37,0,38,0]]}
[null,"APPENDIX A - PRICING SHEET "]
[null,"APPOINTMENT OF SERVICE PROVIDERS TO RECRUIT CANDIDATES FOR BANKSETA LEARNING PROGRAMMES"]
[null,"Bid No: BS/2023/RFB487"]
[null,"YEAR 3"]
[]
[{"$nulls":4},"720 Learners (Ceiling)"]
["Specification / Description A",{"$nulls":3},"Numbers of learners ","Price per Learner","Unit Price ( Ex Vat)"]
["Recruitment project management ",{"$nulls":3},720,0,{"$f":"E8*F8","v":0}]
["Advertising and recruitment Implementation ",{"$nulls":3},720,0,{"$f":"E9*F9","v":0}]
["Interview related costs (Venue and travel)",{"$nulls":3},720,0,0]
["Medical and clinical assessment for disabled candidates",{"$nulls":3},720,0,0]
["Screening (including psychometric testing), shortlisting and selection of candidates",{"$nulls":3},720,0,0]
["Submission of final recommendation of recruitment candidates pack",{"$nulls":3},720,0,0]
["DataCapuring ",{"$nulls":3},720,0,0]
["Reporting ",{"$nulls":3},720,0,0]
["SUB TOTAL",{"$nulls":3},720,{"$f":"+G16/E16","v":0},{"$f":"SUM(G8:G15)","v":0}]
["Other Items not included in above - BIDDER TO SPECIFY"]
[{"$nulls":4},"720 Learners (Ceiling)"]
[{"$nulls":4},"Numbers of learners Learners","Price per Learner","Unit Price ( Ex Vat)"]
[1,{"$nulls":3},720,0,{"$f":"E20*F20","v":0}]
[2,{"$nulls":3},720,0,{"$f":"E21*F21","v":0}]
[3,{"$nulls":3},720,0,0]
[4,{"$nulls":3},720,0,0]
["OPTIONAL ADDITION",{"$nulls":3},{"$f":"+E23","v":720},{"$f":"+G24/E24","v":0},{"$f":"SUM(G20:G23)","v":0}]
[]
["Total excluding VAT",{"$nulls":3},720,{"$f":"+G26/E26","v":0},{"$f":"+G24+G16","v":0}]
["VAT if Applicable (If VAT registered)",{"$nulls":5},{"$f":"+G26*0.15","v":{"v":0,"d":"R0.00"}}]
["TOTAL BIDDING PRICE INCL VAT",{"$nulls":3},720,{"$f":"+G28/E28","v":0},{"$f":"+G27+G26","v":0}]
["Notes:"]
["Pricing must cover all items detailed in the Terms of Reference"]
["Pricing must remain firm for the particurlar year shown"]
["Pricing must include Value Added Tax (VAT)"]
["Service provider should complete blocks in yellow. Total values in this spreadsheet are automatically calculated and filled in."]
[]
["Date:"]
["Service Provider Name"]
["Name of Person Signing"]
["Signature"]

{"sheet":"TOTAL BIDDING AMOUNT","index":3,"n_rows":27,"n_cols":7,"rows_kept":27,"merged":[[1,1,1,6],[3,1,3,6],[5,0,5,3],[5,4,5,6],[6,0,6,3],[7,0,7,3],[8,0,8,3],[9,0,9,3],[10,0,10,3],[11,0,11,3],[14,2,14,6],[15,2,15,6],[16,2,16,6],[17,2,17,6],[18,0,18,6],[19,0,19,6],[20,0,20,6],[21,0,21,6],[22,0,22,6],[23,1,23,3],[26,0,27,0]]}
[null,"APPENDIX A - PRICING SHEET "]
[null,"APPOINTMENT OF SERVICE PROVIDERS TO RECRUIT CANDIDATES FOR BANKSETA LEARNING PROGRAMMES"]
[null,"Bid No: BS/2023/RFB487"]
[null,"TOTAL BIDDING (YEAR 1 TO YEAR 3)"]
[]
["Number of learners ",{"$nulls":3},"1820 Learners Ceiling"]
["Specification / Description A",{"$nulls":3},"Numbers of learners ","Average Price per Learner","Total Price ( Ex Vat)"]
["TOTAL YEAR 1",{"$nulls":3},500,{"$f":"+G8/E8","v":0},{"$f":"+'Year 1 '!G26","v":0}]
["TOTAL YEAR 2",{"$nulls":3},600,{"$f":"+G9/E9","v":0},{"$f":"+'Year 2'!G26","v":0}]
["TOTAL YEAR 3",{"$nulls":3},720,{"$f":"+G10/E10","v":0},{"$f":"+'Year 3'!G26","v":0}]
["TOTAL BIDDING PRICE BEFORE VAT ",{"$nulls":3},{"$f":"+E10+E9+E8","v":{"v":1820,"d":"1,820"}},{"$f":"+G11/E11","v":0},{"$f":"SUM(G8:G10)","v":0}]
["VAT ",{"$nulls":5},{"$f":"G11*15/100","v":0}]
["Total Bid Price for 3 Years",{"$nulls":3},{"$f":"E11","v":{"v":1820,"d":"1,820"}},{"$f":"+G13/E13","v":0},{"$f":"+G12+G11","v":0}]
[]
[]
[]
[]
["Notes:"]
["Pricing must cover all items detailed in the Terms of Reference"]
[]
["Pricing must include Value Added Tax (VAT)"]
["Service provider should complete blocks in yellow. Total values in this spreadsheet are automatically calculated and filled in."]
[]
["Date:"]
["Service Provider Name"]
["Name of Person Signing"]
["Signature"]